fUST/lending_fUST_20250225
["ID","MTS","AMOUNT","RATE_DAILY","PERIOD"]
[354376686,1740468642034,-500.0,0.00066027,120]
[354376688,1740468642043,-500.0,0.00066027,120]
[354376690,1740468642057,-500.0,0.00066027,120]
[354376692,1740468642067,-500.0,0.00066027,120]
[354376694,1740468642076,-500.0,0.00066027,120]
[354376696,1740468642087,-1249.99,0.00066027,120]
[354376699,1740468642102,-500.0,0.00066027,120]
[354376701,1740468642112,-503.02586352,0.00066027,30]
[354376702,1740468642121,-500.0,0.00066027,120]
[354376705,1740468642131,-503.46119753,0.00066027,120]
[354376707,1740468642141,-500.0,0.00066027,120]
[354376709,1740468642151,-500.0,0.00066027,120]
[354376711,1740468642160,-500.0,0.00066027,120]
[354376712,1740468642170,-500.0,0.00066027,120]
[354376714,1740468642179,-500.0,0.00066027,120]
[354376717,1740468642189,-500.0,0.00066027,120]
[354376718,1740468642199,-500.0,0.00066027,120]
[354376721,1740468642208,-500.0,0.00066027,120]
[354376723,1740468642218,-500.0,0.00066027,120]
[354376725,1740468642228,-500.0,0.00066027,120]
[354376727,1740468642237,-504.37604494,0.00066027,120]
[354376729,1740468642249,-500.0,0.00066027,120]
[354376731,1740468642259,-519.23580494,0.00066027,120]
[354376733,1740468642268,-568.92151049,0.00066027,120]
[354376735,1740468642278,-503.62164398,0.00066027,120]
[354376737,1740468642289,-501.86807534,0.00066027,120]
[354376739,1740468642298,-500.0,0.00066027,120]
[354376741,1740468642308,-500.0,0.00066027,120]
[354376743,1740468642318,-499.78951145,0.00066027,120]
[354376745,1740468642328,-1236.21,0.00066027,120]
[354376747,1740468642337,-600.0,0.00066027,120]
[354376749,1740468642347,-510.11747172,0.00066027,120]
[354376751,1740468642357,-500.0,0.00066027,120]
[354376753,1740468642367,-500.0,0.00066027,120]
[354376755,1740468642376,-3000.0,0.00066027,30]
[354376757,1740468642386,-500.0,0.00066027,120]
[354376759,1740468642396,-503.89754722,0.00066027,120]
[354376761,1740468642405,-500.0,0.00066027,120]
[354376763,1740468642415,-500.0,0.00066027,120]
[354376765,1740468642425,-500.0,0.00066027,120]
[354376767,1740468642435,-500.0,0.00066027,120]
[354376769,1740468642444,-500.0,0.00066027,120]
[354376771,1740468642454,-500.0,0.00066027,120]
[354376773,1740468642464,-500.0,0.00066027,120]
[354376775,1740468642474,-500.0,0.00066027,120]
[354376777,1740468642484,-500.0,0.00066027,120]
[354376779,1740468642496,-500.0,0.00066027,120]
[354376781,1740468642508,-500.0,0.00066027,120]
[354376783,1740468642530,-500.0,0.00066027,120]
[354376785,1740468642551,-500.0,0.00066027,120]
[354376787,1740468642574,-506.8720346,0.00066027,120]
[354376789,1740468642596,-500.0,0.00066027,120]
[354376791,1740468642618,-500.0,0.00066027,120]
[354376793,1740468642639,-500.0,0.00066027,120]
[354376795,1740468642662,-195.06053086,0.00066027,120]
[354376797,1740468642685,-500.0,0.00066027,120]
[354376799,1740468642704,-500.0,0.00066027,7]
[354376801,1740468642713,-500.0,0.00066027,120]
[354376803,1740468642723,-513.81905637,0.00066027,120]
[354376805,1740468642732,-500.0,0.00066027,120]
[354376807,1740468642743,-500.0,0.00066027,120]
[354376809,1740468642752,-500.0,0.00066027,120]
[354376811,1740468642762,-500.0,0.00066027,120]
[354376813,1740468642771,-500.0,0.00066027,120]
[354376815,1740468642781,-504.12294736,0.00066027,120]
[354376817,1740468642791,-504.55210256,0.00066027,120]
[354376819,1740468642800,-500.0,0.00066027,120]
[354376821,1740468642810,-500.0,0.00066027,120]
[354376823,1740468642819,-500.0,0.00066027,120]
[354376831,1740468642829,-500.0,0.00066027,120]
[354376833,1740468642891,-500.0,0.00066027,120]
[354376835,1740468642901,-500.0,0.00066027,120]
[354376837,1740468642911,-250.0,0.00066027,120]
[354376839,1740468642921,-518.17688282,0.00066027,120]
[354376841,1740468642930,-500.0,0.00066027,120]
[354376843,1740468642940,-519.5925284,0.00066027,120]
[354376845,1740468642949,-500.0,0.00066027,120]
[354376847,1740468642958,-500.0,0.00066027,120]
[354376849,1740468642968,-500.0,0.00066027,120]
[354376851,1740468642978,-500.0,0.00066027,120]
[354376853,1740468642987,-505.08528196,0.00066027,120]
[354376855,1740468642999,-500.0,0.00066027,120]
[354376857,1740468643009,-510.70878742,0.00066027,120]
[354376859,1740468643018,-500.0,0.00066027,120]
[354376861,1740468643028,-500.0,0.00066027,120]
[354376863,1740468643037,-588.66,0.00066027,120]
[354376865,1740468643047,-500.0,0.00066027,120]
[354376867,1740468643060,-500.0,0.00066027,120]
[354376869,1740468643070,-505.42047916,0.00066027,120]
[354376873,1740468643079,-503.28745639,0.00066027,120]
[354376876,1740468643091,-500.0,0.00066027,120]
[354376879,1740468643102,-500.0,0.00066027,120]
[354376882,1740468643111,-500.0,0.00066027,120]
[354376884,1740468643120,-500.0,0.00066027,120]
[354376886,1740468643130,-555.74,0.00066027,120]
[354376889,1740468643141,-500.0,0.00066027,120]
[354376891,1740468643151,-507.66260214,0.00066027,120]
[354376893,1740468643160,-500.0,0.00066027,120]
[354376895,1740468643170,-1694.77,0.00066027,120]
[354376897,1740468643179,-377.18759069,0.00066027,120]
[354376899,1740468643188,-500.0,0.00066027,120]
[354376902,1740468643198,-6822.91,0.00066027,120]
[354376904,1740468643212,-500.0,0.00066027,120]
[354376906,1740468643222,-500.0,0.00066027,120]
[354376909,1740468643232,-500.0,0.00066027,120]
[354376912,1740468643243,-482.72395975,0.00066027,120]
[354376915,1740468643252,-500.0,0.00066027,120]
[354376917,1740468643262,-500.0,0.00066027,120]
[354376919,1740468643272,-500.0,0.00066027,120]
[354376921,1740468643281,-109394.36,0.00066027,7]
[354376924,1740468643290,-511.06796242,0.00066027,120]
[354376927,1740468643300,-506.31753928,0.00066027,120]
[354376930,1740468643309,-500.0,0.00066027,120]
[354376933,1740468643318,-504.52961651,0.00066027,120]
[354376936,1740468643327,-500.0,0.00066027,120]
[354376939,1740468643337,-505.40613968,0.00066027,120]
[354376941,1740468643347,-500.0,0.00066027,120]
[354376945,1740468643356,-8184.75,0.00066027,120]
[354376948,1740468643366,-500.0,0.00066027,120]
[354376951,1740468643376,-500.0,0.00066027,30]
[354376954,1740468643386,-845.92,0.00066027,120]
[354376957,1740468643396,-500.0,0.00066027,120]
[354376960,1740468643405,-503.61015055,0.00066027,120]
[354376963,1740468643415,-500.0,0.00066027,120]
[354376966,1740468643424,-504.06115569,0.00066027,120]
[354376969,1740468643433,-500.0,0.00066027,120]
[354376972,1740468643443,-500.0,0.00066027,120]
[354376975,1740468643454,-500.0,0.00066027,120]
[354376978,1740468643463,-558.98190769,0.00066027,120]
[354376981,1740468643473,-500.0,0.00066027,120]
[354376984,1740468643483,-504.11750272,0.00066027,120]
[354376987,1740468643498,-3001.35,0.00066027,120]
[354376989,1740468643508,-500.0,0.00066027,120]
[354376994,1740468643518,-1623.81,0.00066027,120]
[354377001,1740468643528,-1251.72,0.00066027,120]
[354377008,1740468643538,-500.0,0.00066027,120]
[354377013,1740468643549,-512.81176448,0.00066027,30]
[354377019,1740468643559,-500.0,0.00066027,120]
[354377026,1740468643576,-500.0,0.00066027,120]
[354377034,1740468643589,-724.54,0.00066027,120]
[354377040,1740468643599,-500.0,0.00066027,120]
[354377045,1740468643610,-500.0,0.00066027,120]
[354377051,1740468643621,-500.0,0.00066027,120]
[354377057,1740468643631,-2534.53,0.00066027,120]
[354377063,1740468643640,-500.0,0.00066027,120]
[354377068,1740468643651,-500.0,0.00066027,120]
[354377074,1740468643661,-500.0,0.00066027,120]
[354377079,1740468643671,-500.0,0.00066027,120]
[354377083,1740468643681,-1000.0,0.00066027,30]
[354377087,1740468643690,-500.0,0.00066027,120]
[354377091,1740468643700,-500.0,0.00066027,120]
[354377095,1740468643710,-505.44862535,0.00066027,120]
[354377099,1740468643720,-500.0,0.00066027,120]
[354377104,1740468643730,-500.0,0.00066027,120]
[354377109,1740468643739,-500.0,0.00066027,120]
[354377113,1740468643751,-1740.45,0.00066027,120]
[354377117,1740468643761,-500.0,0.00066027,120]
[354377121,1740468643771,-1091.05,0.00066027,120]
[354377125,1740468643780,-500.0,0.00066027,120]
[354377129,1740468643792,-696.88,0.00066027,120]
[354377132,1740468643803,-500.0,0.00066027,120]
[354377135,1740468643813,-500.0,0.00066027,120]
[354377143,1740468643898,-500.0,0.00066027,120]
[354377145,1740468643908,-195.60940245,0.00066027,120]
[354377147,1740468643917,-500.0,0.00066027,120]
[354377149,1740468643926,-501.29749169,0.00066027,120]
[354377151,1740468643935,-7345.85,0.00066027,120]
[354377153,1740468643945,-3757.45,0.00066027,120]
[354377155,1740468643954,-500.0,0.00066027,120]
[354377158,1740468643963,-500.0,0.00066027,120]
[354377161,1740468643972,-500.0,0.00066027,120]
[354377164,1740468643982,-1297.71,0.00066027,120]
[354377167,1740468643994,-500.0,0.00066027,120]
[354377170,1740468644003,-500.0,0.00066027,120]
[354377173,1740468644013,-503.21016175,0.00066027,120]
[354377175,1740468644022,-1311.59,0.00066027,120]
[354377179,1740468644032,-1867.12,0.00066027,120]
[354377181,1740468644042,-503.13410827,0.00066027,120]
[354377184,1740468644053,-586.39,0.00066027,120]
[354377188,1740468644065,-833.34,0.00066027,120]
[354377191,1740468644074,-500.0,0.00066027,120]
[354377193,1740468644084,-500.0,0.00066027,120]
[354377196,1740468644095,-500.0,0.00066027,120]
[354377199,1740468644106,-500.0,0.00066027,120]
[354377203,1740468644116,-1439.34,0.00066027,3]
[354377205,1740468644126,-500.0,0.00066027,120]
[354377208,1740468644136,-506.33836688,0.00066027,120]
[354377211,1740468644146,-1916.91,0.00066027,120]
[354377214,1740468644156,-777.06,0.00066027,120]
[354377217,1740468644166,-502.83560844,0.00066027,120]
[354377220,1740468644175,-500.0,0.00066027,120]
[354377223,1740468644185,-500.0,0.00066027,120]
[354377226,1740468644195,-500.0,0.00066027,120]
[354377229,1740468644204,-505.22451817,0.00066027,120]
[354377232,1740468644215,-249.72441386,0.00066027,120]
[354377235,1740468644224,-508.22969677,0.00066027,120]
[354377238,1740468644234,-603.34087825,0.00066027,120]
[354377241,1740468644245,-500.0,0.00066027,120]
[354377244,1740468644255,-500.0,0.00066027,120]
[354377247,1740468644265,-506.35505978,0.00066027,120]
[354377251,1740468644274,-483.89558706,0.00066027,120]
[354377254,1740468644284,-500.0,0.00066027,120]
[354377257,1740468644293,-500.0,0.00066027,120]
[354377260,1740468644303,-2739.8,0.00066027,120]
[354377263,1740468644313,-500.0,0.00066027,120]
[354377266,1740468644322,-504.57921129,0.00066027,120]
[354377269,1740468644332,-500.0,0.00066027,120]
[354377272,1740468644342,-1448.56,0.00066027,120]
[354377275,1740468644352,-500.0,0.00066027,120]
[354377278,1740468644361,-500.0,0.00066027,120]
[354377280,1740468644371,-515.37172911,0.00066027,120]
[354377283,1740468644381,-7379.61,0.000661,30]
[354377286,1740468644391,-500.0,0.0006617,120]
[354377289,1740468644400,-151.0,0.00066301,120]
[354377291,1740468644410,-271.974035,0.00066301,120]
[354377294,1740468644420,-271.974035,0.00066301,120]
[354377297,1740468644429,-158.873165,0.00066301,120]
[354377302,1740468644439,-158.873165,0.00066301,120]
[354377307,1740468644449,-204.509736,0.00066301,120]
[354377311,1740468644459,-204.509736,0.00066301,120]
[354377316,1740468644469,-450.0,0.00066301,120]
[354377320,1740468644478,-450.0,0.00066301,120]
[354377323,1740468644487,-151.0,0.00066301,120]
[354377326,1740468644499,-204.683116,0.00066301,120]
[354377330,1740468644509,-151.0,0.00066301,30]
[354377334,1740468644520,-151.0,0.00066301,120]
[354377337,1740468644530,-151.0,0.00066301,120]
[354377340,1740468644540,-151.0,0.00066301,120]
[354377342,1740468644549,-369.761236,0.00066301,120]
[354377345,1740468644558,-369.761236,0.00066301,120]
[354377348,1740468644568,-237.00367,0.00066301,30]
[354377351,1740468644577,-237.00367,0.00066301,30]
[354377354,1740468644586,-275.001525,0.00066301,120]
[354377356,1740468644595,-275.001525,0.00066301,120]
[354377359,1740468644605,-151.0,0.00066301,120]
[354377362,1740468644615,-151.0,0.00066301,120]
[354377365,1740468644625,-500.0,0.00066301,120]
[354377368,1740468644634,-500.0,0.00066301,120]
[354377371,1740468644643,-151.0,0.00066301,120]
[354377373,1740468644653,-500.0,0.00066301,120]
[354377376,1740468644663,-500.0,0.00066301,120]
[354377379,1740468644673,-500.0,0.00066301,120]
[354377382,1740468644683,-500.0,0.00066301,120]
[354377385,1740468644693,-151.0,0.00066301,120]
[354377388,1740468644703,-505.20306321,0.00066301,120]
[354377391,1740468644714,-500.0,0.00066301,2]
[354377393,1740468644724,-500.0,0.00066301,120]
[354377402,1740468644782,-750.9,0.00066301,120]
[354377405,1740468644793,-151.0,0.00066301,120]
[354377406,1740468644802,-500.0,0.00066301,120]
[354377409,1740468644812,-2111.7,0.00066301,120]
[354377411,1740468644821,-500.0,0.00066301,120]
[354377414,1740468644830,-516.54,0.00066301,120]
[354377417,1740468644840,-555.272174,0.00066301,120]
[354377419,1740468644849,-500.0,0.00066301,120]
[354377421,1740468644859,-555.272174,0.00066301,120]
[354377423,1740468644868,-500.0,0.00066301,120]
[354377425,1740468644878,-500.0,0.00066301,120]
[354377427,1740468644887,-500.0,0.00066301,120]
[354377429,1740468644897,-500.0,0.00066301,120]
[354377432,1740468644906,-500.0,0.00066301,120]
[354377433,1740468644916,-500.0,0.00066301,120]
[354377436,1740468644928,-500.0,0.00066301,120]
[354377438,1740468644938,-151.0,0.00066301,120]
[354377441,1740468644947,-500.0,0.00066301,120]
[354377444,1740468644958,-500.0,0.00066301,120]
[354377446,1740468644967,-503.25787146,0.00066301,120]
[354377448,1740468644977,-500.0,0.00066301,120]
[354377450,1740468644986,-500.0,0.00066301,120]
[354377452,1740468644998,-1360.77,0.00066301,20]
[354377453,1740468645008,-500.0,0.00066301,120]
[354377455,1740468645017,-500.0,0.00066301,120]
[354377457,1740468645027,-503.64182897,0.00066301,120]
[354377459,1740468645036,-150.86658108,0.00066301,120]
[354377462,1740468645047,-500.0,0.00066301,120]
[354377465,1740468645061,-1249.99,0.00066301,120]
[354377467,1740468645071,-500.0,0.00066301,120]
[354377470,1740468645087,-151.0,0.00066301,120]
[354377473,1740468645098,-151.0,0.00066301,120]
[354377475,1740468645108,-500.0,0.00066301,120]
[354377478,1740468645118,-500.0,0.00066301,120]
[354377480,1740468645127,-500.0,0.00066301,120]
[354377483,1740468645137,-500.0,0.00066301,120]
[354377486,1740468645147,-500.0,0.00066301,120]
[354377488,1740468645156,-290.829806,0.00066301,120]
[354377491,1740468645167,-290.829806,0.00066301,120]
[354377494,1740468645177,-500.0,0.00066301,120]
[354377496,1740468645188,-151.0,0.00066301,120]
[354377499,1740468645198,-500.0,0.00066301,120]
[354377501,1740468645209,-514.61672996,0.00066301,120]
[354377504,1740468645219,-500.0,0.00066301,120]
[354377507,1740468645230,-500.0,0.00066301,120]
[354377509,1740468645240,-500.0,0.00066301,120]
[354377512,1740468645253,-500.0,0.00066301,120]
[354377515,1740468645262,-500.0,0.00066301,120]
[354377516,1740468645271,-1236.21,0.00066301,120]
[354377519,1740468645281,-600.0,0.00066301,120]
[354377521,1740468645291,-500.0,0.00066301,120]
[354377524,1740468645302,-385.62377,0.00066301,120]
[354377527,1740468645311,-2170.66725712,0.00066301,30]
[354377528,1740468645321,-500.0,0.00066301,120]
[354377530,1740468645330,-500.0,0.00066301,120]
[354377531,1740468645340,-385.62377,0.00066301,120]
[354377533,1740468645350,-157.663645,0.00066301,120]
[354377535,1740468645360,-500.0,0.00066301,120]
[354377536,1740468645370,-500.0,0.00066301,120]
[354377538,1740468645380,-500.0,0.00066301,120]
[354377540,1740468645390,-500.0,0.00066301,120]
[354377541,1740468645400,-500.0,0.00066301,120]
[354377543,1740468645410,-500.0,0.00066301,120]
[354377544,1740468645420,-500.0,0.00066301,120]
[354377546,1740468645431,-500.0,0.00066301,120]
[354377548,1740468645441,-500.0,0.00066301,120]
[354377549,1740468645451,-500.0,0.00066301,120]
[354377551,1740468645461,-518.89582699,0.00066301,120]
[354377553,1740468645471,-500.0,0.00066301,120]
[354377554,1740468645481,-512.93022185,0.00066301,120]
[354377556,1740468645491,-500.0,0.00066301,120]
[354377557,1740468645504,-500.0,0.00066301,120]
[354377559,1740468645514,-500.0,0.00066301,120]
[354377561,1740468645523,-500.0,0.00066301,120]
[354377562,1740468645533,-510.415886,0.00066301,120]
[354377564,1740468645542,-500.0,0.00066301,7]
[354377566,1740468645552,-510.415886,0.00066301,120]
[354377567,1740468645562,-500.0,0.00066301,120]
[354377572,1740468645616,-500.0,0.00066301,120]
[354377573,1740468645626,-500.0,0.00066301,120]
[354377575,1740468645636,-500.0,0.00066301,120]
[354377577,1740468645645,-500.0,0.00066301,120]
[354377578,1740468645655,-500.0,0.00066301,120]
[354377580,1740468645664,-500.0,0.00066301,120]
[354377582,1740468645675,-500.0,0.00066301,120]
[354377583,1740468645685,-500.0,0.00066301,120]
[354377585,1740468645695,-250.0,0.00066301,120]
[354377586,1740468645705,-500.0,0.00066301,120]
[354377588,1740468645715,-326.04070655,0.00066301,120]
[354377590,1740468645725,-500.0,0.00066301,120]
[354377591,1740468645734,-151.0,0.00066301,120]
[354377593,1740468645746,-500.0,0.00066301,120]
[354377594,1740468645755,-500.0,0.00066301,120]
[354377596,1740468645764,-500.0,0.00066301,120]
[354377598,1740468645774,-500.0,0.00066301,120]
[354377599,1740468645784,-500.0,0.00066301,120]
[354377601,1740468645793,-151.0,0.00066301,120]
[354377602,1740468645803,-588.66,0.00066301,120]
[354377604,1740468645813,-500.0,0.00066301,120]
[354377606,1740468645822,-500.019,0.00066301,120]
[354377607,1740468645831,-500.0,0.00066301,120]
[354377609,1740468645841,-500.0,0.00066301,120]
[354377610,1740468645851,-500.0,0.00066301,120]
[354377612,1740468645860,-151.0,0.00066301,120]
[354377614,1740468645869,-151.0,0.00066301,120]
[354377615,1740468645878,-500.0,0.00066301,120]
[354377617,1740468645887,-151.0,0.00066301,120]
[354377618,1740468645897,-151.0,0.00066301,120]
[354377620,1740468645906,-555.74,0.00066301,120]
[354377622,1740468645916,-196.053098,0.00066301,120]
[354377623,1740468645926,-196.053098,0.00066301,120]
[354377625,1740468645935,-513.99242684,0.00066301,120]
[354377627,1740468645944,-500.0,0.00066301,120]
[354377628,1740468645954,-1694.77,0.00066301,120]
[354377630,1740468645963,-151.0,0.00066301,120]
[354377632,1740468645984,-273.315442,0.00066301,120]
[354377635,1740468646005,-500.0,0.00066301,120]
[354377637,1740468646024,-6822.91,0.00066301,120]
[354377639,1740468646045,-500.0,0.00066301,120]
[354377642,1740468646069,-273.315442,0.00066301,120]
[354377645,1740468646090,-513.85421012,0.00066301,120]
[354377648,1740468646110,-500.0,0.00066301,120]
[354377651,1740468646124,-500.0,0.00066301,120]
[354377654,1740468646143,-151.0,0.00066301,120]
[354377658,1740468646161,-151.0,0.00066301,120]
[354377661,1740468646181,-500.0,0.00066301,120]
[354377664,1740468646194,-151.0,0.00066301,120]
[354377667,1740468646215,-151.477822,0.00066301,120]
[354377669,1740468646229,-500.0,0.00066301,120]
[354377672,1740468646246,-109394.36,0.00066301,7]
[354377674,1740468646261,-500.0,0.00066301,120]
[354377679,1740468646277,-500.0,0.00066301,120]
[354377682,1740468646292,-500.0,0.00066301,120]
[354377684,1740468646307,-8184.75,0.00066301,120]
[354377688,1740468646321,-500.0,0.00066301,30]
[354377690,1740468646335,-845.92,0.00066301,120]
[354377694,1740468646350,-500.0,0.00066301,120]
[354377700,1740468646365,-500.0,0.00066301,120]
[354377707,1740468646381,-500.0,0.00066301,120]
[354377712,1740468646396,-500.0,0.00066301,120]
[354377720,1740468646411,-500.0,0.00066301,120]
[354377725,1740468646426,-500.0,0.00066301,120]
[354377732,1740468646442,-500.0,0.00066301,120]
[354377736,1740468646458,-3001.35,0.00066301,120]
[354377741,1740468646473,-500.0,0.00066301,120]
[354377747,1740468646489,-1623.81,0.00066301,120]
[354377751,1740468646506,-1251.72,0.00066301,120]
[354377758,1740468646521,-500.0,0.00066301,120]
[354377762,1740468646536,-500.0,0.00066301,120]
[354377769,1740468646554,-500.0,0.00066301,120]
[354377792,1740468646633,-724.54,0.00066301,120]
[354377795,1740468646644,-500.0,0.00066301,120]
[354377798,1740468646654,-500.0,0.00066301,120]
[354377800,1740468646663,-500.0,0.00066301,120]
[354377803,1740468646673,-2534.53,0.00066301,120]
[354377807,1740468646683,-500.0,0.00066301,120]
[354377810,1740468646692,-500.0,0.00066301,120]
[354377813,1740468646702,-500.0,0.00066301,120]
[354377816,1740468646711,-210.358253,0.00066301,120]
[354377819,1740468646721,-1000.11327269,0.00066301,30]
[354377821,1740468646730,-500.0,0.00066301,120]
[354377824,1740468646740,-210.358253,0.00066301,120]
[354377827,1740468646753,-500.0,0.00066301,120]
[354377830,1740468646763,-299.92183403,0.00066301,120]
[354377834,1740468646774,-500.0,0.00066301,120]
[354377837,1740468646784,-500.0,0.00066301,120]
[354377840,1740468646793,-1740.45,0.00066301,120]
[354377843,1740468646803,-516.6083598,0.00066301,120]
[354377846,1740468646812,-1091.05,0.00066301,120]
[354377849,1740468646822,-500.0,0.00066301,120]
[354377852,1740468646832,-696.88,0.00066301,120]
[354377855,1740468646842,-500.0,0.00066301,120]
[354377857,1740468646852,-500.0,0.00066301,120]
[354377860,1740468646862,-500.0,0.00066301,120]
[354377863,1740468646872,-500.0,0.00066301,120]
[354377866,1740468646882,-7345.85,0.00066301,120]
[354377869,1740468646892,-3757.45,0.00066301,120]
[354377872,1740468646901,-500.0,0.00066301,120]
[354377875,1740468646911,-500.0,0.00066301,120]
[354377878,1740468646920,-500.0,0.00066301,120]
[354377881,1740468646930,-1297.71,0.00066301,120]
[354377884,1740468646940,-500.0,0.00066301,120]
[354377887,1740468646950,-500.0,0.00066301,120]
[354377890,1740468646960,-1311.59,0.00066301,120]
[354377893,1740468646970,-1867.12,0.00066301,120]
[354377896,1740468646981,-586.39,0.00066301,120]
[354377899,1740468646991,-833.34,0.00066301,120]
[354377902,1740468647006,-500.0,0.00066301,120]
[354377904,1740468647016,-500.0,0.00066301,120]
[354377907,1740468647026,-500.0,0.00066301,120]
[354377909,1740468647036,-500.0,0.00066301,120]
[354377910,1740468647047,-1439.34,0.00066301,3]
[354377911,1740468647065,-500.0,0.00066301,120]
[354377912,1740468647075,-1916.91,0.00066301,120]
[354377914,1740468647086,-777.06,0.00066301,120]
[354377916,1740468647095,-503.72256482,0.00066301,120]
[354377918,1740468647105,-500.0,0.00066301,120]
[354377920,1740468647115,-500.0,0.00066301,120]
[354377922,1740468647125,-151.0,0.00066301,120]
[354377924,1740468647137,-500.0,0.00066301,120]
[354377926,1740468647147,-151.16206,0.00066301,120]
[354377928,1740468647157,-499.22048648,0.00066301,120]
[354377930,1740468647167,-412.258835,0.00066301,120]
[354377932,1740468647177,-505.13906612,0.00066301,120]
[354377934,1740468647187,-500.0,0.00066301,120]
[354377937,1740468647197,-2739.8,0.00066301,120]
[354377940,1740468647207,-500.0,0.00066301,120]
[354377942,1740468647217,-503.57325434,0.00066301,120]
[354377945,1740468647228,-412.258835,0.00066301,120]
[354377948,1740468647238,-1448.56,0.00066301,120]
[354377951,1740468647252,-199.138979,0.00066301,120]
[354377953,1740468647261,-500.0,0.00066301,120]
[354377955,1740468647271,-151.0,0.00066301,120]
[354377958,1740468647280,-151.41,0.00066301,30]
[354377961,1740468647290,-500.0,0.00066373,15]
[354377964,1740468647300,-500.0,0.00066373,15]
[354377967,1740468647310,-500.0,0.00066373,14]
[354377970,1740468647319,-500.0,0.00066373,15]
[354377973,1740468647328,-500.0,0.00066373,15]
[354377976,1740468647339,-570.4975262,0.00066444,120]
[354377979,1740468647349,-1500.0,0.00066522,15]
[354377982,1740468647360,-1498.5000009,0.00066522,15]
[354377985,1740468647370,-1500.0,0.00066522,15]
[354377988,1740468647380,-151.0,0.00066575,120]
[354377991,1740468647390,-271.974035,0.00066575,120]
[354377994,1740468647400,-271.974035,0.00066575,120]
[354377997,1740468647410,-158.873165,0.00066575,120]
[354378000,1740468647420,-158.873165,0.00066575,120]
[354378002,1740468647429,-204.509736,0.00066575,120]
[354378004,1740468647438,-204.509736,0.00066575,120]
[354378006,1740468647447,-450.0,0.00066575,120]
[354378008,1740468647457,-450.0,0.00066575,120]
[354378010,1740468647466,-151.0,0.00066575,120]
[354378017,1740468647522,-151.0,0.00066575,120]
[354378018,1740468647532,-151.0,0.00066575,120]
[354378021,1740468647542,-151.0,0.00066575,120]
[354378023,1740468647552,-500.0,0.00066575,120]
[354378024,1740468647561,-500.0,0.00066575,120]
[354378027,1740468647572,-151.0,0.00066575,120]
[354378028,1740468647582,-500.0,0.00066575,120]
[354378030,1740468647592,-500.0,0.00066575,30]
[354378032,1740468647602,-500.0,0.00066575,120]
[354378034,1740468647611,-500.0,0.00066575,30]
[354378036,1740468647621,-500.0,0.00066575,120]
[354378039,1740468647631,-500.0,0.00066575,120]
[354378041,1740468647641,-151.0,0.00066575,120]
[354378043,1740468647651,-212.93320502,0.00066575,2]
[354378045,1740468647660,-511.85755195,0.00066575,120]
[354378047,1740468647671,-750.9,0.00066575,120]
[354378049,1740468647680,-151.0,0.00066575,120]
[354378051,1740468647689,-500.0,0.00066575,120]
[354378053,1740468647699,-2111.7,0.00066575,120]
[354378055,1740468647708,-300.6476815,0.00066575,120]